fUSD/lending_fUSD_20250908
["ID","MTS","AMOUNT","RATE_DAILY","PERIOD"]
[384187783,1757289605491,33815.68,0.00018343,2]
[384187784,1757289606828,178.73998115,0.00030136,120]
[384187787,1757289676583,250.0,0.00018367,2]
[384187788,1757289693379,20000.0,0.00015,2]
[384187791,1757289940201,168.67,0.00018325,2]
[384187795,1757290036659,300.0,0.000189,6]
[384187802,1757290213845,410.73,0.00018273,2]
[384187810,1757290231748,-246.28,0.00018539,2]
[384187811,1757290231758,-250.0,0.00018541,2]
[384187812,1757290231768,-300.0,0.00018544,2]
[384187813,1757290231778,-500.0,0.00018648,2]
[384187814,1757290231787,-1539.0,0.00018681,2]
[384187815,1757290231796,-1200.0,0.00018799,2]
[384187816,1757290231810,-2500.0,0.000188,2]
[384187817,1757290231820,-300.0,0.00018818,2]
[384187818,1757290231829,-300.0,0.00018818,2]
[384187819,1757290231839,-6918.9703582,0.00018819,2]
[384187820,1757290231849,-208.0,0.00018888,2]
[384187821,1757290231859,-250.0,0.00018889,2]
[384187822,1757290231869,-209.40437684,0.00018889,2]
[384187823,1757290231879,-327.00012625,0.00018889,2]
[384187824,1757290231889,-670.58624095,0.00018889,2]
[384187825,1757290231898,-250.0,0.00018889,2]
[384187826,1757290231908,-277.52220185,0.00018889,2]
[384187827,1757290231920,-200.0,0.00018889,2]
[384187828,1757290231929,-3000.0,0.00018889,2]
[384187829,1757290231939,-200.0,0.00018889,2]
[384187830,1757290231949,-322.6107,0.00018889,2]
[384187831,1757290231959,-300.98871682,0.00018889,2]
[384187832,1757290231968,-160.0,0.00018889,2]
[384187833,1757290231977,-500.0,0.00018889,2]
[384187834,1757290231987,-151.0,0.00018889,2]
[384187835,1757290231996,-151.0,0.00018889,2]
[384187837,1757290232006,-151.0,0.00018889,2]
[384187838,1757290232016,-179.59860825,0.00018889,2]
[384187839,1757290232025,-217.59,0.00018889,2]
[384187840,1757290232035,-151.0,0.00018889,2]
[384187841,1757290232044,-277.35679052,0.00018889,2]
[384187842,1757290232054,-151.0,0.00018889,2]
[384187843,1757290232063,-151.0,0.00018889,2]
[384187844,1757290232073,-151.0,0.00018889,2]
[384187845,1757290232083,-151.0,0.00018889,2]
[384187846,1757290232092,-202.58361826,0.00018889,2]
[384187847,1757290232102,-151.0,0.00018889,2]
[384187848,1757290232116,-151.0,0.00018889,2]
[384187849,1757290232125,-250.0,0.00018889,2]
[384187850,1757290232134,-151.0,0.00018889,2]
[384187851,1757290232144,-151.0,0.00018889,2]
[384187852,1757290232153,-151.0,0.00018889,2]
[384187853,1757290232163,-250.0,0.00018889,2]
[384187854,1757290232172,-151.0,0.00018889,2]
[384187855,1757290232182,-250.0,0.00018889,2]
[384187856,1757290232192,-151.0,0.00018889,2]
[384187857,1757290232201,-250.0,0.00018889,2]
[384187858,1757290232211,-151.0,0.00018889,2]
[384187859,1757290232220,-250.0,0.00018889,2]
[384187860,1757290232230,-151.0,0.00018889,2]
[384187861,1757290232239,-500.0,0.00018889,2]
[384187862,1757290232249,-500.0,0.00018889,2]
[384187863,1757290232259,-500.0,0.00018889,2]
[384187864,1757290232268,-500.0,0.00018889,2]
[384187865,1757290232278,-500.0,0.00018889,2]
[384187866,1757290232287,-500.0,0.00018889,2]
[384187867,1757290232297,-500.0,0.00018889,2]
[384187868,1757290232306,-40.06899352,0.00018889,2]
[384187869,1757290232319,-459.93100648,0.00018889,2]
[384187870,1757290232328,-500.0,0.00018889,2]
[384187871,1757290232338,-500.0,0.00018889,2]
[384187872,1757290232347,-500.0,0.00018889,2]
[384187873,1757290232358,-921.66936086,0.000189,2]
[384187874,1757290232934,-2529.50536166,0.000189,2]
[384187875,1757290232946,-25021.87154362,0.000189,2]
[384187883,1757290237549,-188.32362856,0.0001868,2]
[384187886,1757290237559,-21366.81137154,0.000189,2]
[384187890,1757290237724,-141330.13676232,0.000189,2]
[384187891,1757290237734,-166.6,0.00018919,2]
[384187892,1757290237743,-6918.97035819,0.00018939,2]
[384187893,1757290237752,-500.0,0.00018944,2]
[384187894,1757290237761,-500.0,0.00018999,2]
[384187895,1757290237771,-6918.97035819,0.00019059,2]
[384187896,1757290237780,-5888.0,0.00019061,2]
[384187897,1757290237789,-264.09,0.00019169,2]
[384187898,1757290237799,-6918.97035819,0.00019179,2]
[384187899,1757290237813,-250.0,0.00019214,2]
[384187900,1757290237822,-1994.23958295,0.00019215,2]
[384187901,1757290237831,-403.84,0.00019277,2]
[384187902,1757290237841,-1994.23958291,0.00019291,2]
[384187903,1757290237851,-6918.97035819,0.00019299,2]
[384187905,1757290237860,-600.0,0.000193,7]
[384187907,1757290237870,-400.0,0.00019313,2]
[384187909,1757290237879,-400.0,0.00019313,2]
[384187911,1757290237890,-400.0,0.00019313,2]
[384187913,1757290237900,-596.08,0.00019313,2]
[384187914,1757290237910,-400.0,0.00019313,2]
[384187915,1757290237919,-1838.38,0.00019313,2]
[384187916,1757290237929,-700.46,0.00019313,2]
[384187917,1757290237938,-465.57,0.00019313,2]
[384187918,1757290237948,-634.28,0.00019313,2]
[384187919,1757290237959,-400.0,0.00019313,2]
[384187920,1757290237969,-841.37,0.00019313,2]
[384187922,1757290237978,-400.0,0.00019313,2]
[384187923,1757290237987,-400.0,0.00019313,2]
[384187924,1757290237997,-400.0,0.00019313,2]
[384187925,1757290238007,-459.74,0.00019313,2]
[384187926,1757290238016,-474.47,0.00019313,2]
[384187927,1757290238026,-750.43,0.00019313,2]
[384187928,1757290238035,-400.0,0.00019313,2]
[384187929,1757290238044,-2925.59,0.00019314,2]
[384187930,1757290238053,-400.0,0.00019314,2]
[384187932,1757290238063,-400.0,0.00019314,2]
[384187933,1757290238072,-463.58,0.00019314,2]
[384187934,1757290238082,-564.28,0.00019314,2]
[384187935,1757290238091,-2214.87,0.00019314,2]
[384187936,1757290238101,-400.0,0.00019314,2]
[384187937,1757290238111,-286.296217,0.00019314,2]
[384187938,1757290238121,-825.11,0.00019314,2]
[384187939,1757290238130,-768.66,0.00019314,2]
[384187940,1757290238140,-584.71,0.00019314,2]
[384187941,1757290238150,-592.65,0.00019314,2]
[384187942,1757290238159,-467.45,0.00019314,2]
[384187943,1757290238169,-245.497444,0.00019314,2]
[384187944,1757290238178,-380.648681,0.00019314,2]
[384187945,1757290238188,-1005.7,0.00019314,2]
[384187946,1757290238197,-664.08,0.00019314,2]
[384187947,1757290238207,-717.99,0.00019314,2]
[384187948,1757290238217,-810.3,0.00019314,2]
[384187949,1757290238227,-1213.65,0.00019314,2]
[384187950,1757290238236,-629.67,0.00019314,2]
[384187951,1757290238246,-400.0,0.00019314,2]
[384187952,1757290238256,-400.0,0.00019314,2]
[384187953,1757290238265,-1062.01,0.00019314,2]
[384187954,1757290238275,-825.14,0.00019314,2]
[384187955,1757290238285,-1223.46,0.00019314,2]
[384187956,1757290238296,-400.0,0.00019314,2]
[384187957,1757290238305,-400.0,0.00019314,2]
[384187958,1757290238315,-969.52,0.00019314,2]
[384187959,1757290238324,-400.0,0.00019314,2]
[384187960,1757290238333,-695.81,0.00019314,2]
[384187961,1757290238343,-520.21,0.00019314,2]
[384187962,1757290238352,-429.0,0.00019314,2]
[384187963,1757290238363,-623.76,0.00019314,2]
[384187964,1757290238372,-400.0,0.00019314,2]
[384187965,1757290238381,-2061.04,0.00019314,2]
[384187966,1757290238390,-400.0,0.00019314,2]
[384187967,1757290238399,-472.78,0.00019314,2]
[384187968,1757290238408,-1531.24,0.00019314,2]
[384187969,1757290238418,-2416.84,0.00019314,2]
[384187970,1757290238427,-521.65,0.00019314,2]
[384187971,1757290238436,-400.0,0.00019314,2]
[384187972,1757290238446,-3083.02,0.00019314,2]
[384187973,1757290238456,-400.0,0.00019314,2]
[384187974,1757290238466,-1069.62,0.00019314,2]
[384187975,1757290238475,-400.0,0.00019315,2]
[384187976,1757290238484,-400.0,0.00019315,2]
[384187977,1757290238494,-400.0,0.00019315,2]
[384187978,1757290238503,-400.0,0.00019315,2]
[384187979,1757290238513,-400.0,0.00019315,2]
[384187980,1757290238523,-400.0,0.00019315,2]
[384187981,1757290238532,-400.0,0.00019315,2]
[384187982,1757290238542,-400.0,0.00019315,2]
[384187983,1757290238552,-400.0,0.00019315,2]
[384187984,1757290238561,-498.37,0.00019315,2]
[384187985,1757290238570,-400.0,0.00019315,2]
[384187986,1757290238580,-400.0,0.00019315,2]
[384187987,1757290238589,-400.0,0.00019315,2]
[384187988,1757290238599,-560.52,0.00019315,2]
[384187989,1757290238609,-400.0,0.00019315,2]
[384187990,1757290238619,-468.41,0.00019315,2]
[384187991,1757290238628,-400.0,0.00019315,2]
[384187992,1757290238637,-402.82,0.00019315,2]
[384187993,1757290238646,-674.65,0.00019315,2]
[384187994,1757290238656,-400.0,0.00019315,2]
[384187995,1757290238665,-400.0,0.00019315,2]
[384187996,1757290238675,-400.0,0.00019315,2]
[384187997,1757290238684,-487.21,0.00019315,2]
[384187998,1757290238694,-400.0,0.00019315,2]
[384187999,1757290238703,-842.17,0.00019315,2]
[384188000,1757290238713,-400.0,0.00019315,2]
[384188001,1757290238722,-400.0,0.00019315,2]
[384188002,1757290238732,-575.34,0.00019315,2]
[384188003,1757290238741,-452.14,0.00019315,2]
[384188004,1757290238750,-400.0,0.00019315,2]
[384188005,1757290238759,-470.78,0.00019315,2]
[384188006,1757290238769,-400.0,0.00019315,2]
[384188007,1757290238778,-400.0,0.00019315,2]
[384188008,1757290238788,-400.0,0.00019315,2]
[384188009,1757290238798,-400.0,0.00019315,2]
[384188010,1757290238811,-400.0,0.00019315,2]
[384188011,1757290238821,-400.0,0.00019315,2]
[384188012,1757290238830,-400.0,0.00019315,2]
[384188013,1757290238839,-400.0,0.00019315,2]
[384188014,1757290238850,-400.0,0.00019315,2]
[384188015,1757290238860,-400.0,0.00019315,2]
[384188016,1757290238869,-400.0,0.00019315,2]
[384188017,1757290238880,-852.19,0.00019315,2]
[384188018,1757290238890,-400.0,0.00019315,2]
[384188019,1757290238900,-400.0,0.00019315,2]
[384188020,1757290238910,-427.53,0.00019315,2]
[384188021,1757290238919,-500.0,0.00019315,2]
[384188022,1757290238930,-400.0,0.00019315,2]
[384188023,1757290238939,-400.0,0.00019315,2]
[384188024,1757290238949,-457.36,0.00019315,2]
[384188025,1757290238959,-270.0105781,0.00019315,2]
[384188026,1757290238969,-473.33,0.00019315,2]
[384188027,1757290238978,-400.0,0.00019315,2]
[384188028,1757290238988,-400.0,0.00019315,2]
[384188029,1757290238997,-400.0,0.00019315,2]
[384188030,1757290239007,-400.0,0.00019315,2]
[384188031,1757290239016,-401.92,0.00019315,2]
[384188032,1757290239025,-400.0,0.00019315,2]
[384188033,1757290239035,-730.44,0.00019315,2]
[384188034,1757290239045,-400.0,0.00019315,2]
[384188035,1757290239054,-400.0,0.00019315,2]
[384188036,1757290239064,-400.0,0.00019315,2]
[384188037,1757290239074,-557.43,0.00019315,2]
[384188038,1757290239084,-400.0,0.00019315,2]
[384188039,1757290239094,-400.0,0.00019315,2]
[384188040,1757290239103,-400.0,0.00019315,2]
[384188041,1757290239114,-400.0,0.00019315,2]
[384188042,1757290239124,-400.0,0.00019315,2]
[384188043,1757290239133,-638.72,0.00019315,2]
[384188044,1757290239144,-400.0,0.00019315,2]
[384188045,1757290239160,-400.0,0.00019315,2]
[384188046,1757290239171,-400.0,0.00019315,2]
[384188047,1757290239180,-403.66320028,0.00019315,2]
[384188048,1757290239190,-400.0,0.00019315,2]
[384188049,1757290239199,-400.0,0.00019315,2]
[384188050,1757290239209,-502.19,0.00019315,2]
[384188051,1757290239218,-551.79,0.00019315,2]
[384188052,1757290239228,-400.0,0.00019315,2]
[384188053,1757290239238,-400.0,0.00019315,2]
[384188054,1757290239247,-400.0,0.00019315,2]
[384188055,1757290239257,-400.0,0.00019315,2]
[384188056,1757290239267,-400.0,0.00019315,2]
[384188057,1757290239276,-400.0,0.00019315,2]
[384188058,1757290239286,-828.97,0.00019315,2]
[384188059,1757290239296,-400.0,0.00019315,2]
[384188060,1757290239306,-400.0,0.00019315,2]
[384188061,1757290239315,-400.0,0.00019315,2]
[384188062,1757290239325,-400.0,0.00019315,2]
[384188063,1757290239335,-400.0,0.00019315,2]
[384188064,1757290239344,-400.0,0.00019315,2]
[384188065,1757290239353,-448.48,0.00019315,2]
[384188066,1757290239363,-400.0,0.00019315,2]
[384188067,1757290239373,-662.55,0.00019315,2]
[384188068,1757290239383,-500.0,0.00019315,2]
[384188069,1757290239392,-400.0,0.00019315,2]
[384188070,1757290239402,-610.06,0.00019315,2]
[384188071,1757290239411,-400.0,0.00019315,2]
[384188072,1757290239421,-400.0,0.00019315,2]
[384188073,1757290239430,-400.0,0.00019315,2]
[384188074,1757290239440,-400.0,0.00019315,2]
[384188075,1757290239449,-400.0,0.00019315,2]
[384188076,1757290239459,-400.0,0.00019315,2]
[384188077,1757290239468,-417.66,0.00019315,2]
[384188078,1757290239478,-400.0,0.00019315,2]
[384188079,1757290239487,-400.0,0.00019315,2]
[384188080,1757290239497,-400.0,0.00019315,2]
[384188081,1757290239507,-400.0,0.00019315,2]
[384188082,1757290239517,-697.6,0.00019315,2]
[384188083,1757290239526,-468.63,0.00019315,2]
[384188084,1757290239536,-400.0,0.00019315,2]
[384188085,1757290239546,-400.0,0.00019315,2]
[384188086,1757290239556,-400.0,0.00019315,2]
[384188087,1757290239566,-1568.61,0.00019315,2]
[384188089,1757290239576,-400.0,0.00019315,2]
[384188091,1757290239586,-400.0,0.00019315,2]
[384188094,1757290239595,-400.0,0.00019315,2]
[384188096,1757290239605,-609.85,0.00019315,2]
[384188098,1757290239615,-400.0,0.00019315,2]
[384188100,1757290239624,-400.0,0.00019315,2]
[384188102,1757290239634,-400.0,0.00019315,2]
[384188104,1757290239644,-486.55,0.00019315,2]
[384188106,1757290239653,-400.0,0.00019315,2]
[384188107,1757290239663,-400.0,0.00019315,2]
[384188108,1757290239673,-400.0,0.00019315,2]
[384188109,1757290239682,-400.0,0.00019315,2]
[384188110,1757290239692,-591.31,0.00019315,2]
[384188111,1757290239702,-400.0,0.00019315,2]
[384188112,1757290239711,-500.0,0.00019315,2]
[384188113,1757290239721,-400.0,0.00019315,2]
[384188114,1757290239731,-150.0,0.00019315,2]
[384188115,1757290239740,-400.0,0.00019315,2]
[384188116,1757290239750,-400.0,0.00019315,2]
[384188117,1757290239760,-400.0,0.00019315,2]
[384188118,1757290239770,-400.0,0.00019315,2]
[384188119,1757290239780,-400.0,0.00019315,2]
[384188120,1757290239789,-400.0,0.00019315,2]
[384188121,1757290239799,-400.0,0.00019315,2]
[384188122,1757290239813,-400.0,0.00019315,2]
[384188123,1757290239823,-400.0,0.00019315,2]
[384188124,1757290239833,-400.0,0.00019315,2]
[384188125,1757290239842,-517.42803544,0.00019315,2]
[384188126,1757290239854,-400.0,0.00019315,2]
[384188127,1757290239864,-400.0,0.00019315,2]
[384188128,1757290239874,-400.0,0.00019315,2]
[384188129,1757290239885,-400.0,0.00019315,2]
[384188130,1757290239894,-400.0,0.00019315,2]
[384188131,1757290239904,-677.97,0.00019315,2]
[384188132,1757290239915,-400.0,0.00019315,2]
[384188133,1757290239924,-441.4049806,0.00019315,2]
[384188134,1757290239934,-400.0,0.00019315,2]
[384188135,1757290239943,-400.0,0.00019315,2]
[384188136,1757290239953,-514.49,0.00019315,2]
[384188137,1757290239962,-400.0,0.00019315,2]
[384188138,1757290239972,-400.0,0.00019315,2]
[384188139,1757290239982,-400.0,0.00019315,2]
[384188140,1757290239991,-400.0,0.00019315,2]
[384188141,1757290240001,-400.0,0.00019315,2]
[384188142,1757290240011,-400.0,0.00019315,2]
[384188143,1757290240020,-400.0,0.00019315,2]
[384188144,1757290240030,-400.0,0.00019315,2]
[384188145,1757290240039,-209.07227314,0.00019315,2]
[384188146,1757290240049,-400.0,0.00019315,2]
[384188147,1757290240059,-400.0,0.00019315,2]
[384188148,1757290240068,-400.0,0.00019315,2]
[384188149,1757290240078,-400.0,0.00019315,2]
[384188150,1757290240088,-400.0,0.00019315,2]
[384188151,1757290240098,-400.0,0.00019315,2]
[384188152,1757290240107,-400.0,0.00019315,2]
[384188153,1757290240117,-400.0,0.00019315,2]
[384188154,1757290240127,-400.0,0.00019315,2]
[384188155,1757290240136,-400.0,0.00019315,2]
[384188156,1757290240147,-400.0,0.00019315,2]
[384188157,1757290240157,-400.0,0.00019315,2]
[384188158,1757290240166,-400.0,0.00019315,2]
[384188160,1757290240176,-400.0,0.00019315,2]
[384188161,1757290240186,-400.0,0.00019315,2]
[384188162,1757290240195,-300.0,0.00019315,2]
[384188163,1757290240204,-400.0,0.00019315,2]
[384188164,1757290240213,-400.0,0.00019315,2]
[384188165,1757290240222,-400.0,0.00019315,2]
[384188166,1757290240231,-523.35,0.00019315,2]
[384188167,1757290240488,-486.11,0.00019315,2]
[384188168,1757290240498,-1588.64,0.00019315,2]
[384188169,1757290240508,-400.0,0.00019315,2]
[384188170,1757290240519,-400.0,0.00019315,2]
[384188171,1757290240530,-400.0,0.00019315,2]
[384188172,1757290240541,-400.0,0.00019315,2]
[384188173,1757290240551,-936.27,0.00019315,2]
[384188174,1757290240561,-400.0,0.00019315,2]
[384188175,1757290240571,-400.0,0.00019315,2]
[384188176,1757290240580,-400.0,0.00019315,2]
[384188177,1757290240591,-400.0,0.00019315,2]
[384188178,1757290240600,-400.0,0.00019315,2]
[384188179,1757290240610,-400.0,0.00019315,2]
[384188180,1757290240619,-400.0,0.00019315,2]
[384188181,1757290240629,-400.0,0.00019315,2]
[384188182,1757290240639,-400.0,0.00019315,2]
[384188183,1757290240648,-400.0,0.00019315,2]
[384188184,1757290240658,-829.12,0.00019315,2]
[384188185,1757290240667,-400.0,0.00019315,2]
[384188186,1757290240677,-400.0,0.00019315,2]
[384188187,1757290240686,-400.0,0.00019315,2]
[384188188,1757290240696,-400.0,0.00019315,2]
[384188189,1757290240705,-410.8,0.00019315,2]
[384188190,1757290240715,-449.09,0.00019315,2]
[384188191,1757290240725,-400.0,0.00019315,2]
[384188192,1757290240734,-400.0,0.00019315,2]
[384188193,1757290240743,-567.1,0.00019315,2]
[384188194,1757290240754,-400.0,0.00019315,2]
[384188195,1757290240763,-402.87,0.00019315,2]
[384188196,1757290240772,-462.42,0.00019315,2]
[384188197,1757290240782,-500.14449032,0.00019315,2]
[384188198,1757290240791,-400.0,0.00019315,2]
[384188199,1757290240801,-400.0,0.00019315,2]
[384188200,1757290240816,-400.0,0.00019315,2]
[384188201,1757290240826,-447.64,0.00019315,2]
[384188202,1757290240836,-400.0,0.00019315,2]
[384188203,1757290240845,-400.0,0.00019315,2]
[384188204,1757290240855,-400.0,0.00019315,2]
[384188205,1757290240865,-194.41824116,0.00019315,2]
[384188206,1757290240875,-150.0,0.00019315,2]
[384188207,1757290240884,-410.5,0.00019315,2]
[384188208,1757290240893,-150.0,0.00019315,2]
[384188209,1757290240902,-150.0,0.00019315,2]
[384188210,1757290240912,-479.65,0.00019315,2]
[384188211,1757290240922,-400.0,0.00019315,2]
[384188212,1757290240931,-500.0,0.00019315,2]
[384188213,1757290240941,-400.0,0.00019315,2]
[384188214,1757290240950,-150.0,0.00019315,2]
[384188215,1757290240960,-500.0,0.00019315,2]
[384188216,1757290240970,-150.0,0.00019315,2]
[384188217,1757290240979,-150.0,0.00019315,2]
[384188218,1757290240989,-150.0,0.00019315,2]
[384188219,1757290240999,-150.0,0.00019315,2]
[384188220,1757290241008,-417.78,0.00019315,2]
[384188221,1757290241018,-400.0,0.00019315,2]
[384188222,1757290241028,-400.0,0.00019315,2]
[384188223,1757290241040,-635.86,0.00019315,2]
[384188224,1757290241051,-400.0,0.00019315,2]
[384188225,1757290241061,-550.64,0.00019315,2]
[384188226,1757290241070,-400.0,0.00019315,2]
[384188227,1757290241085,-400.0,0.00019315,2]
[384188228,1757290241096,-400.0,0.00019315,2]
[384188229,1757290241106,-400.0,0.00019315,2]
[384188230,1757290241116,-400.0,0.00019315,2]
[384188231,1757290241125,-400.0,0.00019315,2]
[384188232,1757290241134,-400.0,0.00019315,2]
[384188233,1757290241144,-400.0,0.00019315,2]
[384188234,1757290241154,-400.0,0.00019315,2]
[384188235,1757290241164,-400.0,0.00019315,2]
[384188236,1757290241174,-151.0,0.00019315,2]
[384188237,1757290241184,-400.0,0.00019315,2]
[384188238,1757290241194,-151.0,0.00019315,2]
[384188239,1757290241207,-151.0,0.00019315,2]
[384188240,1757290241217,-151.0,0.00019315,2]
[384188241,1757290241227,-400.0,0.00019315,2]
[384188242,1757290241236,-400.0,0.00019315,2]
[384188243,1757290241246,-151.0,0.00019315,2]
[384188244,1757290241255,-400.0,0.00019315,2]
[384188245,1757290241265,-173.516475,0.00019315,2]
[384188246,1757290241275,-400.0,0.00019315,2]
[384188247,1757290241285,-537.2,0.00019315,2]
[384188248,1757290241295,-400.0,0.00019315,2]
[384188249,1757290241306,-464.46,0.00019315,2]
[384188250,1757290241315,-150.0,0.00019315,2]
[384188251,1757290241326,-500.0,0.00019315,2]
[384188252,1757290241336,-150.0,0.00019315,2]
[384188253,1757290241346,-150.0,0.00019315,2]
[384188254,1757290241357,-500.0,0.00019315,2]
[384188255,1757290241367,-400.0,0.00019315,2]
[384188256,1757290241377,-160.0,0.00019315,2]
[384188257,1757290241387,-160.0,0.00019315,2]
[384188258,1757290241398,-160.0,0.00019315,2]
[384188259,1757290241409,-160.0,0.00019315,2]
[384188260,1757290241418,-160.0,0.00019315,2]
[384188261,1757290241429,-160.0,0.00019315,2]
[384188262,1757290241440,-160.0,0.00019315,2]
[384188263,1757290241450,-400.0,0.00019315,2]
[384188264,1757290241460,-160.0,0.00019315,2]
[384188265,1757290241470,-151.0,0.00019315,2]
[384188266,1757290241480,-160.0,0.00019315,2]
[384188267,1757290241489,-160.0,0.00019315,2]
[384188268,1757290241499,-160.0,0.00019315,2]
[384188269,1757290241508,-160.0,0.00019315,2]
[384188270,1757290241518,-160.0,0.00019315,2]
[384188271,1757290241527,-160.0,0.00019315,2]
[384188272,1757290241537,-160.0,0.00019315,2]
[384188273,1757290241547,-160.0,0.00019315,2]
[384188274,1757290241556,-160.0,0.00019315,2]
[384188275,1757290241566,-160.0,0.00019315,2]
[384188276,1757290241575,-160.0,0.00019315,2]
[384188277,1757290241585,-160.0,0.00019315,2]
[384188278,1757290241594,-160.0,0.00019315,2]
[384188279,1757290241604,-160.0,0.00019315,2]
[384188280,1757290241614,-160.0,0.00019315,2]
[384188281,1757290241623,-160.0,0.00019315,2]
[384188282,1757290241633,-151.0,0.00019315,2]
[384188283,1757290241642,-160.0,0.00019315,2]
[384188284,1757290241651,-160.0,0.00019315,2]
[384188285,1757290241660,-160.0,0.00019315,2]
[384188286,1757290241670,-160.0,0.00019315,2]
[384188287,1757290241679,-400.0,0.00019315,2]
[384188288,1757290241688,-160.0,0.00019315,2]
[384188289,1757290241697,-160.0,0.00019315,2]
[384188290,1757290241706,-160.0,0.00019315,2]
[384188291,1757290241715,-160.0,0.00019315,2]
[384188292,1757290241725,-160.0,0.00019315,2]
[384188293,1757290241735,-160.0,0.00019315,2]
[384188294,1757290241744,-160.0,0.00019315,2]
[384188295,1757290241753,-400.0,0.00019315,2]
[384188296,1757290241763,-151.0,0.00019315,2]
[384188297,1757290241775,-151.0,0.00019315,2]
[384188298,1757290241784,-400.0,0.00019315,2]
[384188299,1757290241794,-267.635707,0.00019315,2]
[384188300,1757290241803,-438.05,0.00019315,2]
[384188301,1757290241818,-400.0,0.00019315,2]
[384188302,1757290241827,-151.0,0.00019315,2]
[384188303,1757290241837,-151.0,0.00019315,2]
[384188304,1757290241847,-400.0,0.00019315,2]
[384188305,1757290241857,-400.0,0.00019315,2]
[384188306,1757290241871,-400.0,0.00019315,2]
[384188307,1757290241887,-400.0,0.00019315,2]
[384188308,1757290241900,-400.0,0.00019315,2]
[384188309,1757290241910,-176.06662223,0.00019315,2]
[384188310,1757290241920,-500.0,0.00019315,2]
[384188311,1757290241930,-151.0,0.00019315,2]
[384188312,1757290241941,-150.0,0.00019315,2]
[384188313,1757290241950,-151.0,0.00019315,2]
[384188314,1757290241960,-547.0,0.00019315,2]
[384188315,1757290241969,-500.0,0.00019315,2]
[384188316,1757290241979,-150.0,0.00019315,2]
[384188317,1757290241990,-150.0,0.00019315,2]
[384188318,1757290241999,-150.0,0.00019315,2]
[384188319,1757290242009,-400.0,0.00019315,2]
[384188320,1757290242019,-542.25,0.00019315,2]
[384188321,1757290242029,-151.0,0.00019315,2]
[384188322,1757290242038,-151.0,0.00019315,2]
[384188323,1757290242048,-151.0,0.00019315,2]
[384188324,1757290242057,-400.0,0.00019315,2]
[384188325,1757290242066,-230.743866,0.00019315,2]
[384188326,1757290242075,-151.0,0.00019315,2]
[384188327,1757290242085,-401.75,0.00019315,2]
[384188328,1757290242094,-206.588049,0.00019315,2]
[384188329,1757290242104,-400.0,0.00019315,2]
[384188330,1757290242113,-206.588049,0.00019315,2]
[384188331,1757290242123,-400.0,0.00019315,2]
[384188332,1757290242132,-206.588049,0.00019315,2]
[384188333,1757290242142,-151.0,0.00019315,2]